{"text_format":"1","workbook":"xlsx","n_sheets":1,"sheets":["Долг.обязат. прил. 4"],"not_rendered":{"charts":0,"images":0,"macros":0,"external_links":0,"defined_names":0,"comments":0,"pivot_tables":0},"unopened":[],"bounds":{"document_bytes":16777216,"sheet_cells":100000,"rows_first":2000,"rows_last":500,"rows_between":2000,"halvings":0,"cell_chars":16384,"cell_head_chars":4096},"cells_cut":0,"cells_raw":0,"read":"whole","date_system":"1900"}

{"sheet":"Долг.обязат. прил. 4","index":0,"n_rows":35,"n_cols":35,"rows_kept":35,"cut":false,"hidden":false,"merged":[[7,17,7,34],[22,19,22,31],[24,27,24,29],[24,25,24,26],[9,28,9,31],[9,17,9,20],[23,19,24,21],[24,30,24,31],[24,16,24,18],[24,22,24,24],[36,1,36,4],[22,4,25,4],[7,9,10,9],[22,8,25,8],[22,5,25,5],[7,1,10,1],[22,3,25,3],[7,2,10,2],[22,6,25,6],[7,4,10,4],[7,8,10,8],[22,9,24,10],[7,7,10,7],[9,25,9,27],[9,21,9,24],[22,12,25,12],[23,22,23,26],[8,17,8,20],[8,21,8,27],[22,13,25,13],[23,27,23,31],[8,28,8,34],[24,14,25,14],[22,14,23,18],[9,32,9,34],[9,14,9,16],[24,15,25,15],[7,0,10,0],[7,10,8,16],[22,11,25,11],[9,10,9,13],[22,0,25,0],[22,1,25,1],[22,2,25,2],[7,3,10,3],[7,5,9,6],[22,7,25,7]]}
[]
[]
[]
[null,null,null,null,null,null,"Выписка из Долговой книги Тулунского муниципального района на 01.09.2015 года"]
[]
[]
[null,null,"                                                      ",null,null,null,null,null,null,null,null,null,null,null,null,"тыс.руб."]
["Регистрационный код обязательства*","Вид долгового обязательства, основание возникновения - дата и номер нормативного правового акта муниципального образования","Полное наименование заемщика","Полное наименование кредитора,  дата и номер договора заимствования, предоставления гарантии","Дата  возникно вения долгового обязатель ства","Дата погашения долгового обязательства",null,"Cумма долгового обязатель ства                            ","Стои мость обслуживания долгового обязательства","Форма обеспе чения обяза тель ства","Задолженность на начало текущего года ",null,null,null,null,null,null,"Задолженность по состоянию на 01.09.2015г."]
[null,null,null,null,null,null,null,null,null,null,null,null,null,null,null,null,null,"Начислено в 2015году ",null,null,null,"Погашено в 2015году",null,null,null,null,null,null,"Остаток задолженности "]
[null,null,null,null,null,null,null,null,null,null,"общая сумма обязательств",null,null,null,"в т.ч. просроченная",null,null,"общая сумма обязательств",null,null,null,"общая сумма обязательств",null,null,null,"в т.ч.просроченная",null,null,"общая сумма обязательств",null,null,null,"в т.ч. просроченная"]
[null,null,null,null,null,"плановая дата погашения","фактическая дата погашения",null,null,null,"основной долг (номинал)","в т.ч. дисконт","%","штраф","основной долг (номинал)","в т.ч.дисконт","%","основной долг (номинал)","вт.ч.дисконт","%","штраф","основной долг (номинал)","в т.ч.дисконт","%","штраф","основной долг (номинал)","в т.ч.дисконт","%","основной долг (номинал)","в т.ч.дисконт","%","штраф","основной долг (номинал)","вт.ч.дисконт","%"]
[1,2,3,4,5,6,7,8,9,10,11,{"$f":"K12+1","v":12},13,{"$f":"M12+1","v":14},15,16,17,18,{"$f":"R12+1","v":19},20,21,22,23,24,25,26,27,28,29,30,31,32,33,34,35]
["1. Государственные ценные бумаги МО"]
[null,null,null,null,null,null,null,null,null,null,0,0,0,0,0,0,0,0,0,0,0,0,0,0,0,0,0,0,0,0,0,0,0,0,0]
["Итого по разделу 1",null,null,null,null,null,null,null,null,null,0,0,0,0,0,0,0,0,0,0,0,0,0,0,0,0,0,0,0,0,0,0,0,0,0]
[null,null,null,null,null,null,null,null,null,null,0,0,0,0,0,0,0,0,0,0,0,0,0,0,0,0,0,0,0,0,0,0,0,0,0]
[" 2. Бюджетные кредиты, привлеченные в бюджет МО от других бюджетов бюджетной системы РФ"]
["Всего",null,null,null,null,null,null,null,null,null,null,null,null,null,null,0,null,null,0,null,null,null,null,null,null,null,null,null,null,null,null,0]
["3. Кредиты, привлеченные в бюджет МО от кредитных организаций, иностранных банков и международных финансовых организаций "]
[]
["Итого по разделу 3"]
["Раздел 4. Договоры о предоставлении муниципальных гарантий МО"]
["№","Дата и номер договора о предоставлении муниципальной гарантии","Дата и номер договора, заключенного между бенефициаром и принципалом","Основание возникновения долгового обязательства, № и дата документа","Валюта гарантии","Наименование принципала","Наименование бенефициара ","Сумма выданной гарантии","Дата вступления гарантии в силу","Срок действия гарантии",null,"Срок предъявления требований по гарантии","Стоимость обслуживания долгового обязательства ","Форма обеспечения (контргарантия)","Задолженность на начало текущего года",null,null,null,null,"Задолженность по состоянию на 01.09.2015г."]
[null,null,null,null,null,null,null,null,null,null,null,null,null,null,null,null,null,null,null,"Начислено в 2015году ",null,null,"Погашено в 2015г.",null,null,null,null,"Остаток задолженности "]
[null,null,null,null,null,null,null,null,null,null,null,null,null,null,"основной долг","%","в т.ч.просроченная",null,null,null,null,null,"общая сумма обязательств",null,null,"в т.ч.просроченная",null,"общая сумма обязательств",null,null,"в т.ч.просроченная"]
[null,null,null,null,null,null,null,null,null,"по договору","фактический",null,null,null,null,null,"штраф","основной долг","%","основной долг","%","штраф","основной долг","%","штраф","основной долг","%","основной долг","%","штраф","основной долг","%"]
[1,{"$f":"A27+1","v":2},{"$f":"B27+1","v":3},{"$f":"C27+1","v":4},5,6,7,8,9,10,11,{"$f":"K27+1","v":12},{"$f":"L27+1","v":13},{"$f":"M27+1","v":14},{"$f":"N27+1","v":15},{"$f":"O27+1","v":16},17,{"$f":"Q27+1","v":18},{"$f":"R27+1","v":19},20,21,22,23,24,25,26,27,28,29,30,31,32]
["Итого по разделу 4",null,null,null,null,null,null,0,null,null,null,null,0,null,0,0,0,0,0,0,0,0,0,0,0,0,0,0,0,0,0,0]
["Всего",null,null,null,null,null,null,0,null,null,null,null,0,null,0,{"$f":"SUM(P28)","v":0},0,0,0,0,0,0,0,0,0,0,0,{"$f":"O29+T29-W29","v":0},0,0,0,0]
[]
[]
[]
[]
["  ","Председатель Комитета по финансам",null,null,null,null,null,null,null,null,null,null,null,"Романчук Г.Э."]
[null,null,null,null,null,null,null,null,null,null,null,null," "]